[Event "2nd Cambridge Open 2024"]
[Site "Cambridge"]
[Date "2024.02.20"]
[Round "3.33"]
[White "Martyn, Rafe"]
[Black "Mocic, Ivano"]
[Result "1-0"]
[ECO "B90"]
[WhiteElo "2206"]
[BlackElo "2008"]
[Annotator "RC"]
[PlyCount "65"]
[EventDate "2024.02.18"]
[EventType "swiss"]
[EventCountry "ENG"]
[SourceTitle "playchess.com"]
[Source "ChessBase"]
[SourceQuality "1"]
[TimeControl "5400+30"]

1. e4 {[%emt 0:00:01]} c5 {[%emt 0:00:07]} 2. Nf3 {[%emt 0:00:04]} d6 {[%emt 0:00:05]} 3. d4 {[%emt 0:00:03]} cxd4 {[%emt 0:00:06]} 4. Nxd4 {[%emt 0:00:03]} Nf6 {[%emt 0:00:09]} 5. Nc3 {[%emt 0:00:04]} a6 {[%emt 0:00:05]} 6. Be3 {[%emt 0:00:16]} e5 {[%emt 0:00:06]} 7. Nb3 {[%emt 0:00:04]} Be7 {[%emt 0:00:05]} 8. f3 {[%emt 0:00:06]} Be6 {[%emt 0:00:50]} 9. Qd2 {[%emt 0:00:03]} h5 {[%emt 0:00:06]} 10. Be2 {[%emt 0:11:57]} Nbd7 {[%emt 0:04:26]} 11. Nd5 {[%emt 0:00:15]} Bxd5 {[%emt 0:01:23]} 12. exd5 {[%emt 0:00:06]} Qc7 {[%emt 0:03:57]} 13. Na5 {[%emt 0:07:35]} Bd8 {[%emt 0:02:56]} 14. b4 {[%emt 0:05:59]} Qc8 {[%emt 0:14:29]} 15. O-O {[%emt 0:10:28]} O-O {[%emt 0:03:34]} 16. Kh1 {[%emt 0:15:22]} Bxa5 {[%emt 0:10:11]} 17. bxa5 {[%emt 0:00:05]} Nc5 {[%emt 0:00:59]} 18. Rab1 {[%emt 0:05:07]} Qc7 {[%emt 0:02:26]} 19. c4 {[%emt 0:02:16]} Nfd7 {[%emt 0:14:53]} 20. f4 {[%emt 0:03:33]} exf4 {[%emt 0:05:12]} 21. Rxf4 {[%emt 0:03:03]} g6 {[%emt 0:05:31]} 22. Bd4 {[%emt 0:05:50]} Rae8 {[%emt 0:03:38]} 23. Bxh5 {[%emt 0:06:33]} Ne5 {[%emt 0:10:07]} 24. Be2 {[%emt 0:06:27]} Kg7 {[%emt 0:04:52]} 25. Rbf1 {[%emt 0:03:14]} f6 {[%emt 0:02:51]} 26. h4 {[%emt 0:01:54]} Rh8 {[%emt 0:04:23]} 27. Kg1 {[%emt 0:01:03]} Ncd7 {[%emt 0:01:04]} 28. h5 {[%emt 0:03:07]} g5 {[%emt 0:00:35]} 29. Rxf6 {[%emt 0:00:21]} Nxf6 {[%emt 0:00:33]} 30. Qxg5+ {[%emt 0:00:04]} Kh7 {[%emt 0:01:14]} 31. Rxf6 {[%emt 0:00:21]} Qg7 {[%emt 0:01:42]} 32. Qf5+ {[%emt 0:00:06]} Ng6 {[%emt 0:01:42]} 33. Rf7 {[%emt 0:00:23]} 1-0

[Event "2nd Cambridge Open 2024"]
[Site "Cambridge"]
[Date "2024.02.20"]
[Round "3.34"]
[White "Lazarus, Simon E"]
[Black "Saine, Zachary"]
[Result "0-1"]
[ECO "A90"]
[WhiteElo "1845"]
[BlackElo "1978"]
[Annotator "RC"]
[PlyCount "164"]
[EventDate "2024.02.18"]
[EventType "swiss"]
[EventCountry "ENG"]
[SourceTitle "playchess.com"]
[Source "ChessBase"]
[SourceQuality "1"]
[TimeControl "5400+30"]

1. Nf3 {[%emt 0:00:06]} f5 {[%emt 0:00:15]} 2. g3 {[%emt 0:01:30]} Nf6 {[%emt 0:00:10]} 3. Bg2 {[%emt 0:00:28]} e6 {[%emt 0:00:10]} 4. O-O {[%emt 0:01:18]} d5 {[%emt 0:00:14]} 5. d4 {[%emt 0:00:50]} Bd6 {[%emt 0:00:11]} 6. Bf4 {[%emt 0:00:57]} Bxf4 {[%emt 0:00:31]} 7. gxf4 {[%emt 0:00:07]} O-O {[%emt 0:00:22]} 8. e3 {[%emt 0:02:31]} Bd7 {[%emt 0:01:40]} 9. c4 {[%emt 0:03:18]} c6 {[%emt 0:00:25]} 10. Qb3 {[%emt 0:03:17]} b6 {[%emt 0:11:41]} 11. Nc3 {[%emt 0:06:18]} Be8 {[%emt 0:02:24]} 12. Ne5 {[%emt 0:04:51]} Bh5 {[%emt 0:09:38]} 13. cxd5 {[%emt 0:03:19]} cxd5 {[%emt 0:00:42]} 14. a4 {[%emt 0:03:43]} a6 {[%emt 0:06:29]} 15. Rfc1 {[%emt 0:03:04]} Ra7 {[%emt 0:08:40]} 16. Rc2 {[%emt 0:10:10]} Ng4 {[%emt 0:22:13]} 17. h3 {[%emt 0:07:48]} Nxe5 {[%emt 0:00:22]} 18. dxe5 {[%emt 0:00:28]} Nd7 {[%emt 0:05:35]} 19. a5 {[%emt 0:04:06]} b5 {[%emt 0:01:15]} 20. Rd2 {[%emt 0:04:56]} Kh8 {[%emt 0:03:38]} 21. Qb4 {[%emt 0:05:05]} Nb8 {[%emt 0:03:13]} 22. Rc2 {[%emt 0:09:09]} Rc7 {[%emt 0:01:29]} 23. Rac1 {[%emt 0:09:31]} Rc4 {[%emt 0:00:29]} 24. Qd6 {[%emt 0:01:17]} Qxd6 {[%emt 0:00:58]} 25. exd6 {[%emt 0:00:05]} Rfc8 {[%emt 0:06:16]} 26. Bf1 {[%emt 0:01:40]} R4c6 {[%emt 0:00:19]} 27. Bd3 {[%emt 0:01:01]} Kg8 {[%emt 0:01:01]} 28. Nxd5 {[%emt 0:02:42]} Rxc2 {[%emt 0:03:54]} 29. Rxc2 {[%emt 0:00:10]} Rxc2 {[%emt 0:00:11]} 30. Ne7+ {[%emt 0:00:06]} Kf7 {[%emt 0:00:32]} 31. Bxc2 {[%emt 0:00:07]} Ke8 {[%emt 0:05:46]} 32. e4 {[%emt 0:01:30]} fxe4 {[%emt 0:00:31]} 33. f5 {[%emt 0:01:34]} Kd7 {[%emt 0:01:05]} 34. fxe6+ {[%emt 0:00:26]} Kxe6 {[%emt 0:01:40]} 35. Bxe4 {[%emt 0:00:50]} g6 {[%emt 0:00:56]} 36. Nc6 {[%emt 0:02:46]} Nd7 {[%emt 0:01:07]} 37. Nd8+ {[%emt 0:02:31]} Kxd6 {[%emt 0:00:14]} 38. b4 {[%emt 0:01:09]} Ke5 {[%emt 0:01:25]} 39. Bb7 {[%emt 0:00:33]} Nb8 {[%emt 0:00:03]} 40. Nf7+ {[%emt 0:02:39]} Kd4 {[%emt 0:00:32]} 41. Nd6 {[%emt 0:01:55]} Kc3 {[%emt 0:00:13]} 42. Bxa6 {[%emt 0:01:00]} Nxa6 {[%emt 0:00:13]} 43. Nxb5+ {[%emt 0:00:05]} Kxb4 {[%emt 0:00:04]} 44. Nd6 {[%emt 0:00:14]} Kxa5 {[%emt 0:00:34]} 45. Nf7 {[%emt 0:00:10]} Kb5 {[%emt 0:00:15]} 46. Ng5 {[%emt 0:00:05]} Kc5 {[%emt 0:01:13]} 47. Nxh7 {[%emt 0:00:07]} Kd5 {[%emt 0:00:13]} 48. h4 {[%emt 0:00:14]} Ke4 {[%emt 0:00:09]} 49. Nf8 {[%emt 0:00:10]} Kf3 {[%emt 0:00:18]} 50. Kf1 {[%emt 0:00:35]} Nc5 {[%emt 0:00:08]} 51. Ke1 {[%emt 0:00:11]} Nd3+ {[%emt 0:00:22]} 52. Kd2 {[%emt 0:00:09]} Nxf2 {[%emt 0:00:10]} 53. Nxg6 {[%emt 0:00:17]} Bxg6 {[%emt 0:00:03]} 54. Kc3 {[%emt 0:00:13]} Kg4 {[%emt 0:00:12]} 55. Kd4 {[%emt 0:00:04]} Kxh4 {[%emt 0:00:08]} 56. Ke5 {[%emt 0:00:16]} Kg5 {[%emt 0:00:15]} 57. Kd4 {[%emt 0:00:13]} Kf4 {[%emt 0:00:05]} 58. Kd5 {[%emt 0:00:26]} Be4+ {[%emt 0:00:15]} 59. Kd4 {[%emt 0:00:11]} Nd3 {[%emt 0:00:13]} 60. Kc3 {[%emt 0:00:13]} Ke3 {[%emt 0:00:08]} 61. Kc4 {[%emt 0:00:18]} Bc6 {[%emt 0:00:03]} 62. Kc3 {[%emt 0:00:11]} Bd5 {[%emt 0:00:04]} 63. Kc2 {[%emt 0:00:13]} Kd4 {[%emt 0:00:09]} 64. Kb1 {[%emt 0:00:43]} Kc3 {[%emt 0:00:08]} 65. Ka1 {[%emt 0:00:12]} Nb4 {[%emt 0:00:04]} 66. Kb1 {[%emt 0:00:11]} Nc2 {[%emt 0:00:29]} 67. Kc1 {[%emt 0:00:08]} Ba2 {[%emt 0:00:06]} 68. Kd1 {[%emt 0:00:23]} Nd4 {[%emt 0:00:09]} 69. Ke1 {[%emt 0:01:33]} Kd3 {[%emt 0:00:07]} 70. Kd1 {[%emt 0:01:22]} Ne2 {[%emt 0:00:06]} 71. Ke1 {[%emt 0:00:21]} Ke3 {[%emt 0:00:01]} 72. Kd1 {[%emt 0:00:11]} Bb3+ {[%emt 0:00:01]} 73. Ke1 {[%emt 0:00:07]} Ba4 {[%emt 0:00:15]} 74. Kf1 {[%emt 0:00:09]} Nf4 {[%emt 0:00:03]} 75. Ke1 {[%emt 0:00:14]} Ng2+ {[%emt 0:00:04]} 76. Kf1 {[%emt 0:00:05]} Kf3 {[%emt 0:00:02]} 77. Kg1 {[%emt 0:00:12]} Kg3 {[%emt 0:00:03]} 78. Kf1 {[%emt 0:00:08]} Bb5+ {[%emt 0:00:03]} 79. Kg1 {[%emt 0:00:06]} Nf4 {[%emt 0:00:11]} 80. Kh1 {[%emt 0:00:28]} Ba6 {[%emt 0:00:04]} 81. Kg1 {[%emt 0:00:33]} Nh3+ {[%emt 0:00:04]} 82. Kh1 {[%emt 0:00:17]} Bb7# {[%emt 0:00:01]} 0-1

[Event "2nd Cambridge Open 2024"]
[Site "Cambridge"]
[Date "2024.02.20"]
[Round "3.35"]
[White "Kovalskyi, Roman"]
[Black "Lim, Mark"]
[Result "1-0"]
[ECO "C02"]
[WhiteElo "2009"]
[BlackElo "2265"]
[Annotator "TA"]
[PlyCount "74"]
[EventDate "2024.02.18"]
[EventType "swiss"]
[EventCountry "ENG"]
[SourceTitle "playchess.com"]
[Source "ChessBase"]
[SourceQuality "1"]
[TimeControl "5400+30"]

{[%evp 17,74,33,42,52,48,38,66,0,15,-37,-20,-46,-49,-112,-112,-135,-143,-134,-157,-123,-83,-104,-108,-171,-186,-175,-82,-74,-86,-71,-86,-95,-93,-265,-271,-253,0,-347,-305,-304,-297,-367,-353,-388,-374,-421,-427,-908,-900,-913,-906,-888,0,0,29991,29992,29992,29993,29995]} 1. e4 {[%emt 0:06:01]} e6 {[%emt 0:00:01]} 2. d4 {[%emt 0:00:07]} d5 {[%emt 0:00:07]} 3. e5 {[%emt 0:00:06]} c5 {[%emt 0:00:03]} 4. c3 {[%emt 0:00:03]} Qb6 {[%emt 0:00:03]} 5. Nf3 {[%emt 0:00:39]} Bd7 {[%emt 0:00:04]} 6. a3 {[%emt 0:00:45]} cxd4 {[%emt 0:00:22]} 7. cxd4 {[%emt 0:00:28]} Bb5 {[%emt 0:00:11]} 8. Bxb5+ {[%emt 0:02:26]} Qxb5 {[%emt 0:00:05]} 9. Nc3 {[%emt 0:00:05]} Qa6 {[%emt 0:00:06]} 10. Bd2 {[%emt 0:01:51]} Nd7 {[%emt 0:02:06]} 11. b4 {[%emt 0:01:53]} Qd3 {[%emt 0:05:43]} 12. Qa4 {[%emt 0:26:02]} (12. Ne2 $14) 12... a6 {[%emt 0:07:20]} 13. Rc1 {[%emt 0:11:24]} (13. b5 $11) 13... Ne7 {[%emt 0:02:10]} 14. h4 {[%emt 0:07:07]} Nc6 {[%emt 0:05:01][%cal Od7b6]} 15. Ne2 {[%emt 0:20:26]} (15. b5 $15 Nb6 16. Qc2 Qxc2 (16... Nxd4 $2 17. Qxd3 Nxf3+ 18. Qxf3 $18) 17. Rxc2 axb5 18. Nxb5) 15... Nb6 $17 {[%emt 0:06:04][%cal Bd7b6,Bb6c4,Bc4d2][%mdl 32]} 16. Qd1 {[%emt 0:00:12]} Qxa3 {[%emt 0:07:48]} 17. Rc3 {[%emt 0:04:05]} Qa4 {[%emt 0:02:17]} (17... Qxb4 $2 18. Rxc6 Qb5 19. Rc7 $18) 18. Rb3 {[%emt 0:00:06] Hoping for Nc3.} Nd8 {[%emt 0:15:05]} (18... Nxb4 19. Rxb4 Bxb4 20. Qxa4+ Nxa4 21. Bxb4) 19. O-O {[%emt 0:03:02][%cal Ob4b5]} Nc4 {[%emt 0:01:31]} 20. b5 {[%emt 0:04:40] [#]} Nxd2 $1 $19 {[%emt 0:04:33]} (20... axb5 21. Nc3 Qa6 22. Nxb5 $11) 21. Nxd2 {[%emt 0:00:03] [#]} axb5 {[%emt 0:00:52]} (21... Bb4 $1 $19 {[%cal Rb4d2] and Black stays clearly on top. ...Bxd2 would now be deadly.} 22. Nf3 (22. bxa6 Bxd2 23. axb7 Rb8 $17) 22... Qxb5) 22. Nc3 $17 {[%emt 0:08:37][%csl LRa4,LRb5]} Qxd4 {[%emt 0:05:30]} 23. Nxb5 {[%emt 0:00:04]} Qxe5 {[%emt 0:01:36] aiming for ...Bc5.} 24. Nf3 {[%emt 0:00:05] A dynamic duo of knights.} Qb8 {[%emt 0:04:14]} 25. Re1 $2 {[%emt 0:00:48]} (25. Qd4 $17) 25... Be7 $19 {[%emt 0:04:02]} 26. Ne5 {[%emt 0:01:45]} Bf6 $2 {[%emt 0:20:41]} ({Less strong is} 26... Bxh4 27. Qc2 $15) ({Black should play} 26... Nc6 $19 27. Nxf7 Kxf7) 27. f4 {[%emt 0:00:38][%mdl 8192]} (27. Ng4 $11 {and White is okay.}) 27... Bxe5 {[%emt 0:01:09]} (27... Bxh4 $2 28. Qc2 Bxe1 29. Nc7+ $19) 28. fxe5 {[%emt 0:00:18]} O-O {[%emt 0:00:23]} 29. Qg4 {[%emt 0:00:33]} Nc6 {[%emt 0:01:29]} 30. Rg3 {[%emt 0:00:25]} g6 {[%emt 0:00:13]} ({Not} 30... Nxe5 31. Qxg7#) 31. Qg5 {[%emt 0:00:33]} Qd8 {[%emt 0:01:11]} 32. Qh6 {[%emt 0:00:08]} (32. Nd6 $142) 32... Qb6+ {[%emt 0:01:04]} 33. Kh2 {[%emt 0:00:29]} Qxb5 {[%emt 0:00:21]} 34. h5 {[%emt 0:00:03]} Nd4 $2 {[%emt 0:01:50]} (34... Ne7 $19 35. hxg6 fxg6) 35. hxg6 $11 {[%emt 0:01:20][%csl Gg6][%cal Rh6h7]} Nf3+ $2 {[%emt 0:01:28][%mdl 8192]} 36. gxf3 {[%emt 0:00:25][%csl Gg6][%cal Rh6h7]} Ra2+ {[%emt 0:00:54]} 37. Kh3 {[%emt 0:00:45][%csl Gg6][%cal Rh6h7]} fxg6 {[%emt 0:01:23] Never resign too early!   Weighted Error Value: White=0.52/Black=0.73.  Loses game:     	White=2     	---        Missed win:     	---       	Black=1      Mistake:       	White=5     	Black=1      Inaccurate:     	White=1     	Black=1      OK:         	White=5     	Black=10     Best:        	White=2     	Black=4      Strong:       	---       	Black=1} 1-0

[Event "2nd Cambridge Open 2024"]
[Site "Cambridge"]
[Date "2024.02.20"]
[Round "3.36"]
[White "De Coverly, Roger D"]
[Black "Asgarova, Turan"]
[Result "1/2-1/2"]
[ECO "A04"]
[WhiteElo "1893"]
[BlackElo "1988"]
[Annotator "RC"]
[PlyCount "105"]
[EventDate "2024.02.18"]
[EventType "swiss"]
[EventCountry "ENG"]
[SourceTitle "playchess.com"]
[Source "ChessBase"]
[SourceQuality "1"]
[TimeControl "5400+30"]

1. e4 {[%emt 0:00:06]} c5 {[%emt 0:00:07]} 2. Nf3 {[%emt 0:00:04]} e6 {[%emt 0:00:09]} 3. d3 {[%emt 0:00:04]} Nc6 {[%emt 0:00:55]} 4. g3 {[%emt 0:00:07]} d6 {[%emt 0:00:49]} 5. Bg2 {[%emt 0:00:11]} g6 {[%emt 0:01:27]} 6. O-O {[%emt 0:00:42]} Bg7 {[%emt 0:00:10]} 7. Nc3 {[%emt 0:02:54]} Nf6 {[%emt 0:02:29]} 8. h3 {[%emt 0:01:19]} O-O {[%emt 0:03:08]} 9. Be3 {[%emt 0:00:24]} a6 {[%emt 0:01:03]} 10. a4 {[%emt 0:01:05]} Rb8 {[%emt 0:01:08]} 11. Qd2 {[%emt 0:02:10]} Qc7 {[%emt 0:06:52]} 12. Bh6 {[%emt 0:02:27]} Bd7 {[%emt 0:04:50]} 13. Nh4 {[%emt 0:02:53]} Nd4 {[%emt 0:03:09]} 14. Bxg7 {[%emt 0:01:09]} Kxg7 {[%emt 0:00:06]} 15. f4 {[%emt 0:01:50]} Qd8 {[%emt 0:12:32]} 16. Rf2 {[%emt 0:04:20]} Nh5 {[%emt 0:04:14]} 17. Qe3 {[%emt 0:03:07]} f5 {[%emt 0:03:46]} 18. Raf1 {[%emt 0:01:23]} Bc6 {[%emt 0:12:07]} 19. Kh2 {[%emt 0:02:18]} Rc8 {[%emt 0:08:43]} 20. Nf3 {[%emt 0:02:51]} Nxf3+ {[%emt 0:03:09]} 21. Bxf3 {[%emt 0:00:16]} Nf6 {[%emt 0:01:24]} 22. b3 {[%emt 0:09:42]} Rc7 {[%emt 0:02:15]} 23. g4 {[%emt 0:03:35]} Ng8 {[%emt 0:02:02]} 24. gxf5 {[%emt 0:03:41]} exf5 {[%emt 0:00:05]} 25. Rg1 {[%emt 0:04:23]} Rcf7 {[%emt 0:01:38]} 26. Be2 {[%emt 0:02:17]} Qh4 {[%emt 0:03:09]} 27. exf5 {[%emt 0:05:15]} Rxf5 {[%emt 0:00:50]} 28. Bg4 {[%emt 0:04:04]} R5f7 {[%emt 0:01:10]} 29. Rgf1 {[%emt 0:07:18]} Nh6 {[%emt 0:03:41]} 30. Qg3 {[%emt 0:01:39]} Nxg4+ {[%emt 0:01:36]} 31. Qxg4 {[%emt 0:00:12]} Qd8 {[%emt 0:01:58]} 32. Ne4 {[%emt 0:01:46]} Bd7 {[%emt 0:01:27]} 33. Qg3 {[%emt 0:00:28]} Bf5 {[%emt 0:01:46]} 34. Nd2 {[%emt 0:11:07]} Re8 {[%emt 0:03:12]} 35. Nc4 {[%emt 0:02:34]} Rfe7 {[%emt 0:00:34]} 36. Rf3 {[%emt 0:01:37]} Re2+ {[%emt 0:03:35]} 37. R1f2 {[%emt 0:00:15]} Qd7 {[%emt 0:02:29]} 38. Ne3 {[%emt 0:01:55]} Rxf2+ {[%emt 0:01:04]} 39. Qxf2 {[%emt 0:00:14]} Qe6 {[%emt 0:00:55]} 40. Nxf5+ {[%emt 0:00:55]} Qxf5 {[%emt 0:00:07]} 41. d4 {[%emt 0:01:07]} Re4 {[%emt 0:00:36]} 42. dxc5 {[%emt 0:01:31]} dxc5 {[%emt 0:00:09]} 43. c3 {[%emt 0:03:58]} a5 {[%emt 0:01:51]} 44. Kg3 {[%emt 0:00:51]} b6 {[%emt 0:00:31]} 45. Re3 {[%emt 0:00:49]} Qe6 {[%emt 0:00:57]} 46. Rxe4 {[%emt 0:00:43]} Qxe4 {[%emt 0:00:04]} 47. Qd2 {[%emt 0:01:12]} Qe6 {[%emt 0:00:55]} 48. c4 {[%emt 0:00:31]} h5 {[%emt 0:00:07]} 49. Qc3+ {[%emt 0:00:32]} Kf7 {[%emt 0:02:05]} 50. Qf3 {[%emt 0:00:31]} Qe1+ {[%emt 0:00:19]} 51. Kg2 {[%emt 0:00:15]} Qd2+ {[%emt 0:00:08]} 52. Kg3 {[%emt 0:00:11]} Qe1+ {[%emt 0:00:10]} 53. Kg2 {[%emt 0:00:06]} 1/2-1/2

[Event "2nd Cambridge Open 2024"]
[Site "Cambridge"]
[Date "2024.02.20"]
[Round "3.37"]
[White "Gardiner, Eric D"]
[Black "Volovich, Julia"]
[Result "1/2-1/2"]
[ECO "C01"]
[WhiteElo "1837"]
[BlackElo "1983"]
[Annotator "RC"]
[PlyCount "150"]
[EventDate "2024.02.18"]
[EventType "swiss"]
[EventCountry "ENG"]
[SourceTitle "playchess.com"]
[Source "ChessBase"]
[SourceQuality "1"]
[TimeControl "5400+30"]

1. e4 {[%emt 0:00:05]} e6 {[%emt 0:01:11]} 2. d4 {[%emt 0:00:08]} d5 {[%emt 0:00:08]} 3. exd5 {[%emt 0:00:08]} exd5 {[%emt 0:00:09]} 4. Nf3 {[%emt 0:00:07]} Bd6 {[%emt 0:00:29]} 5. c4 {[%emt 0:00:30]} Nf6 {[%emt 0:00:15]} 6. Nc3 {[%emt 0:00:27]} O-O {[%emt 0:00:26]} 7. cxd5 {[%emt 0:02:17]} Nbd7 {[%emt 0:00:40]} 8. Be2 {[%emt 0:07:04]} Nb6 {[%emt 0:01:13]} 9. Bg5 {[%emt 0:01:24]} Be7 {[%emt 0:06:43]} 10. Bxf6 {[%emt 0:02:03]} Bxf6 {[%emt 0:00:14]} 11. Qb3 {[%emt 0:01:32]} Bg4 {[%emt 0:15:22]} 12. O-O {[%emt 0:10:59]} Re8 {[%emt 0:11:48]} 13. Rad1 {[%emt 0:14:20]} Qd6 {[%emt 0:08:57]} 14. h3 {[%emt 0:03:19]} Bh5 {[%emt 0:03:57]} 15. g4 {[%emt 0:03:21]} Bg6 {[%emt 0:00:43]} 16. Rfe1 {[%emt 0:05:57]} Qf4 {[%emt 0:07:45]} 17. Kg2 {[%emt 0:10:59]} h5 {[%emt 0:05:37]} 18. gxh5 {[%emt 0:16:39]} Bxh5 {[%emt 0:00:27]} 19. Nb5 {[%emt 0:02:42]} a6 {[%emt 0:02:06]} 20. Na3 {[%emt 0:02:05]} Rad8 {[%emt 0:01:57]} 21. d6 {[%emt 0:05:17]} Rxd6 {[%emt 0:04:30]} 22. Bf1 {[%emt 0:06:45]} Red8 {[%emt 0:03:12]} 23. Qe3 {[%emt 0:01:07]} Bxf3+ {[%emt 0:06:11]} 24. Qxf3 {[%emt 0:00:06]} Qxf3+ {[%emt 0:00:03]} 25. Kxf3 {[%emt 0:00:04]} Bxd4 {[%emt 0:00:11]} 26. Re2 {[%emt 0:02:00]} c5 {[%emt 0:02:42]} 27. Red2 {[%emt 0:00:19]} Rf6+ {[%emt 0:01:28]} 28. Kg2 {[%emt 0:00:31]} Rd5 {[%emt 0:02:33]} 29. Nc4 {[%emt 0:01:34]} Rg5+ {[%emt 0:01:08]} 30. Kh1 {[%emt 0:00:16]} Nd5 {[%emt 0:02:12]} 31. Ne3 {[%emt 0:00:51]} Nf4 {[%emt 0:04:40]} 32. Ng4 {[%emt 0:00:15]} Rb6 {[%emt 0:00:15]} 33. b3 {[%emt 0:00:21]} f5 {[%emt 0:00:56]} 34. Nh2 {[%emt 0:00:49]} Rh6 {[%emt 0:01:05]} 35. Nf3 {[%emt 0:00:33]} Rgh5 {[%emt 0:04:00]} 36. Nxd4 {[%emt 0:00:19]} Nxh3 {[%emt 0:00:48]} 37. Bxh3 {[%emt 0:00:18]} Rxh3+ {[%emt 0:00:06]} 38. Kg2 {[%emt 0:00:09]} Rh2+ {[%emt 0:00:44]} 39. Kf3 {[%emt 0:00:23]} cxd4 {[%emt 0:00:18]} 40. Rxd4 {[%emt 0:00:16]} R2h3+ {[%emt 0:01:24]} 41. Kg2 {[%emt 0:00:44]} Rc3 {[%emt 0:00:51]} 42. Rd8+ {[%emt 0:01:12]} Kh7 {[%emt 0:00:06]} 43. R8d7 {[%emt 0:00:22]} Rg6+ {[%emt 0:00:38]} 44. Kf1 {[%emt 0:00:21]} Rh3 {[%emt 0:01:20]} 45. R1d6 {[%emt 0:00:56]} Rxd6 {[%emt 0:00:33]} 46. Rxd6 {[%emt 0:00:03]} Rc3 {[%emt 0:00:11]} 47. Rd7 {[%emt 0:00:43]} b5 {[%emt 0:00:22]} 48. Rd6 {[%emt 0:00:23]} a5 {[%emt 0:00:30]} 49. Rd5 {[%emt 0:00:17]} Rc2 {[%emt 0:00:34]} 50. Rxf5 {[%emt 0:00:35]} Rxa2 {[%emt 0:00:04]} 51. Rxb5 {[%emt 0:00:09]} Kg6 {[%emt 0:00:10]} 52. Kg2 {[%emt 0:01:27]} Ra3 {[%emt 0:00:10]} 53. b4 {[%emt 0:00:31]} a4 {[%emt 0:00:27]} 54. Ra5 {[%emt 0:00:13]} Kf6 {[%emt 0:00:09]} 55. Ra6+ {[%emt 0:00:42]} Ke5 {[%emt 0:00:32]} 56. Rg6 {[%emt 0:00:53]} Rb3 {[%emt 0:00:13]} 57. b5 {[%emt 0:00:18]} Kd5 {[%emt 0:01:22]} 58. Rxg7 {[%emt 0:00:18]} Rxb5 {[%emt 0:00:08]} 59. Ra7 {[%emt 0:00:24]} Rb4 {[%emt 0:00:05]} 60. Kg3 {[%emt 0:00:16]} Kc4 {[%emt 0:01:15]} 61. f4 {[%emt 0:00:23]} Kb3 {[%emt 0:00:13]} 62. Kg4 {[%emt 0:00:22]} a3 {[%emt 0:00:20]} 63. Kg5 {[%emt 0:00:08]} Ra4 {[%emt 0:01:03]} 64. Rb7+ {[%emt 0:00:06]} Kc2 {[%emt 0:00:31]} 65. Rc7+ {[%emt 0:00:17]} Kd2 {[%emt 0:00:08]} 66. Rd7+ {[%emt 0:00:44]} Ke2 {[%emt 0:00:12]} 67. Rc7 {[%emt 0:01:24]} a2 {[%emt 0:00:18]} 68. Rc1 {[%emt 0:00:06]} a1=Q {[%emt 0:01:06]} 69. Rxa1 {[%emt 0:00:02]} Rxa1 {[%emt 0:00:05]} 70. f5 {[%emt 0:00:02]} Rg1+ {[%emt 0:01:45]} 71. Kh6 {[%emt 0:00:13]} Ke3 {[%emt 0:00:21]} 72. f6 {[%emt 0:00:13]} Ke4 {[%emt 0:00:08]} 73. f7 {[%emt 0:00:20]} Rh1+ {[%emt 0:00:13]} 74. Kg7 {[%emt 0:00:09]} Rg1+ {[%emt 0:00:09]} 75. Kh8 {[%emt 0:00:13]} Rh1+ {[%emt 0:00:04]} 1/2-1/2

[Event "2nd Cambridge Open 2024"]
[Site "Cambridge"]
[Date "2024.02.20"]
[Round "3.39"]
[White "Lenton, Oliver J"]
[Black "Redman, David J"]
[Result "0-1"]
[ECO "C14"]
[WhiteElo "1787"]
[BlackElo "1971"]
[Annotator "RC"]
[PlyCount "98"]
[EventDate "2024.02.18"]
[EventType "swiss"]
[EventCountry "ENG"]
[SourceTitle "playchess.com"]
[Source "ChessBase"]
[SourceQuality "1"]
[TimeControl "5400+30"]

1. e4 {[%emt 0:00:03]} Nf6 {[%emt 0:00:03]} 2. Nc3 {[%emt 0:00:04]} d5 {[%emt 0:00:17]} 3. d4 {[%emt 0:00:03]} e6 {[%emt 0:07:04]} 4. Bg5 {[%emt 0:02:38]} Be7 {[%emt 0:00:17]} 5. e5 {[%emt 0:03:57]} Nfd7 {[%emt 0:04:39]} 6. Bxe7 {[%emt 0:00:53]} Qxe7 {[%emt 0:00:05]} 7. Qg4 {[%emt 0:02:14]} f5 {[%emt 0:14:00]} 8. Qg3 {[%emt 0:08:26]} a6 {[%emt 0:05:03]} 9. Bd3 {[%emt 0:04:40]} Nc6 {[%emt 0:11:35]} 10. Nf3 {[%emt 0:08:30]} Nb6 {[%emt 0:00:15]} 11. a3 {[%emt 0:04:01]} g5 {[%emt 0:15:45]} 12. Ne2 {[%emt 0:01:00]} Rg8 {[%emt 0:01:37]} 13. h4 {[%emt 0:01:22]} g4 {[%emt 0:08:13]} 14. Nd2 {[%emt 0:02:11]} Bd7 {[%emt 0:05:33]} 15. Qe3 {[%emt 0:02:09]} Na5 {[%emt 0:08:43]} 16. g3 {[%emt 0:04:00]} Bb5 {[%emt 0:02:31]} 17. b3 {[%emt 0:01:46]} Rc8 {[%emt 0:02:12]} 18. O-O {[%emt 0:05:19]} Bxd3 {[%emt 0:02:38]} 19. cxd3 {[%emt 0:02:08]} Nc6 {[%emt 0:00:06]} 20. b4 {[%emt 0:02:42]} Nd7 {[%emt 0:04:23]} 21. Rfc1 {[%emt 0:01:42]} Nd8 {[%emt 0:00:31]} 22. Nb3 {[%emt 0:03:19]} b6 {[%emt 0:00:03]} 23. Qd2 {[%emt 0:08:19]} Nf7 {[%emt 0:02:21]} 24. Nf4 {[%emt 0:04:32]} Kf8 {[%emt 0:01:55]} 25. a4 {[%emt 0:05:00]} Kg7 {[%emt 0:01:26]} 26. a5 {[%emt 0:01:14]} c5 {[%emt 0:00:05]} 27. bxc5 {[%emt 0:03:36]} bxc5 {[%emt 0:00:02]} 28. Nxc5 {[%emt 0:00:07]} Nxc5 {[%emt 0:00:05]} 29. Rxc5 {[%emt 0:00:03]} Nxe5 {[%emt 0:00:44]} 30. Qe3 {[%emt 0:04:11]} Nf3+ {[%emt 0:00:32]} 31. Kh1 {[%emt 0:02:34]} Kf7 {[%emt 0:00:01]} 32. Rac1 {[%emt 0:04:19]} Rxc5 {[%emt 0:00:01]} 33. dxc5 {[%emt 0:00:08]} d4 {[%emt 0:00:03]} 34. Qe2 {[%emt 0:00:21]} Rc8 {[%emt 0:00:08]} 35. c6 {[%emt 0:01:21]} Qd6 {[%emt 0:01:04]} 36. c7 {[%emt 0:01:11]} Nxh4 {[%emt 0:01:06]} 37. Qc2 {[%emt 0:02:10]} Nf3 {[%emt 0:00:50]} 38. Kg2 {[%emt 0:03:52]} Ke7 {[%emt 0:00:43]} 39. Rh1 {[%emt 0:01:06]} Ng5 {[%emt 0:00:31]} 40. Rh5 {[%emt 0:02:23]} Rxc7 {[%emt 0:00:21]} 41. Qb2 {[%emt 0:00:40]} Qc6+ {[%emt 0:00:28]} 42. Kf1 {[%emt 0:00:21]} Qc1+ {[%emt 0:01:42]} 43. Qxc1 {[%emt 0:00:01]} Rxc1+ {[%emt 0:00:02]} 44. Ke2 {[%emt 0:00:06]} Kf6 {[%emt 0:00:40]} 45. Rxg5 {[%emt 0:01:24]} Kxg5 {[%emt 0:00:05]} 46. Nxe6+ {[%emt 0:00:02]} Kf6 {[%emt 0:00:19]} 47. Nxd4 {[%emt 0:00:03]} Rc5 {[%emt 0:00:10]} 48. Ke3 {[%emt 0:01:07]} Rxa5 {[%emt 0:00:04]} 49. Ne2 {[%emt 0:00:45]} Re5+ {[%emt 0:01:00]} 0-1